[Event "Titled Tuesday Blitz December 27 Early 2022"]
[White "Kleiman, Jake"]
[Black "Ankerst, Mihael"]
[WhiteFideId "2020041"]
[BlackFideId "14602369"]
[WhiteElo "2399"]
[BlackElo "2370"]
[Result "1-0"]
[Round "07"]
[TimeControl "180+2"]
[Date "2022.12.27"]
[WhiteClock "0:01:36"]
[BlackClock "0:01:14"]

1. Nf3 {[%clk 0:03:00]}  Nf6 {[%clk 0:02:59]} 2. g3 {[%clk 0:03:01]}  g6 {[%clk 0:02:59]} 3. Bg2 {[%clk 0:03:02]}  Bg7 {[%clk 0:02:59]} 4. O-O {[%clk 0:03:03]}  O-O {[%clk 0:02:58]} 5. d3 {[%clk 0:03:04]}  d6 {[%clk 0:02:57]} 6. e4 {[%clk 0:03:04]}  e5 {[%clk 0:02:56]} 7. a4 {[%clk 0:03:05]}  a5 {[%clk 0:02:56]} 8. Nbd2 {[%clk 0:03:05]}  Nbd7 {[%clk 0:02:53]} 9. Nc4 {[%clk 0:03:06]}  Nc5 {[%clk 0:02:52]} 10. Bd2 {[%clk 0:03:05]}  Be6 {[%clk 0:02:50]} 11. Nxa5 {[%clk 0:03:03]}  c6 {[%clk 0:02:45]} 12. b4 {[%clk 0:02:59]}  Na6 {[%clk 0:02:34]} 13. Nxb7 {[%clk 0:02:57]}  Qc7 {[%clk 0:02:19]} 14. Na5 {[%clk 0:02:57]}  c5 {[%clk 0:02:19]} 15. b5 {[%clk 0:02:52]}  Nb4 {[%clk 0:02:17]} 16. Bxb4 {[%clk 0:02:30]}  cxb4 {[%clk 0:02:18]} 17. Nc6 {[%clk 0:02:31]}  d5 {[%clk 0:01:58]} 18. Nfxe5 {[%clk 0:01:59]}  dxe4 {[%clk 0:01:32]} 19. dxe4 {[%clk 0:02:00]}  Nd7 {[%clk 0:01:33]} 20. Nd3 {[%clk 0:01:36]}  Bxa1 {[%clk 0:01:17]} 21. Qxa1 {[%clk 0:01:37]}  Bc4 {[%clk 0:01:14]} 22. Ne7# {[%clk 0:01:36]} 1-0


[Site "https://www.chess.com"]

[Event "Titled Tuesday Blitz December 27 Early 2022"]
[White "Koutlas, Nikolaos"]
[Black "Osinovsky, Stepan"]
[WhiteFideId "25827138"]
[BlackFideId "4157354"]
[WhiteElo "2341"]
[BlackElo "2241"]
[Result "1-0"]
[Round "07"]
[TimeControl "180+2"]
[Date "2022.12.27"]
[WhiteClock "0:00:54"]
[BlackClock "0:00:03"]

1. Nf3 {[%clk 0:02:48]}  Nf6 {[%clk 0:02:58]} 2. h4 {[%clk 0:02:46]}  g6 {[%clk 0:02:42]} 3. b3 {[%clk 0:02:44]}  Bg7 {[%clk 0:02:40]} 4. Bb2 {[%clk 0:02:44]}  O-O {[%clk 0:02:39]} 5. c4 {[%clk 0:02:44]}  d6 {[%clk 0:02:39]} 6. Nc3 {[%clk 0:02:44]}  e5 {[%clk 0:02:39]} 7. Qc2 {[%clk 0:02:43]}  Nc6 {[%clk 0:02:31]} 8. e3 {[%clk 0:02:43]}  Bf5 {[%clk 0:02:29]} 9. Qd1 {[%clk 0:02:29]}  e4 {[%clk 0:02:21]} 10. Ng5 {[%clk 0:02:25]}  Re8 {[%clk 0:02:19]} 11. c5 {[%clk 0:02:22]}  dxc5 {[%clk 0:02:14]} 12. Bc4 {[%clk 0:02:21]}  Ne5 {[%clk 0:02:13]} 13. Ncxe4 {[%clk 0:02:13]}  Nxe4 {[%clk 0:01:06]} 14. Bxe5 {[%clk 0:02:04]}  Bxe5 {[%clk 0:01:03]} 15. Nxf7 {[%clk 0:02:04]}  Qxd2+ {[%clk 0:00:47]} 16. Qxd2 {[%clk 0:01:57]}  Nxd2 {[%clk 0:00:48]} 17. Nxe5+ {[%clk 0:01:38]}  Nxc4 {[%clk 0:00:45]} 18. Nxc4 {[%clk 0:01:39]}  a5 {[%clk 0:00:36]} 19. O-O-O {[%clk 0:01:30]}  b5 {[%clk 0:00:30]} 20. Nd2 {[%clk 0:01:23]}  a4 {[%clk 0:00:30]} 21. Kb2 {[%clk 0:01:17]}  Kf7 {[%clk 0:00:18]} 22. e4 {[%clk 0:01:11]}  Bxe4 {[%clk 0:00:16]} 23. Nxe4 {[%clk 0:01:11]}  Rxe4 {[%clk 0:00:17]} 24. Rd7+ {[%clk 0:01:11]}  Re7 {[%clk 0:00:17]} 25. Rxe7+ {[%clk 0:01:11]}  Kxe7 {[%clk 0:00:18]} 26. Rd1 {[%clk 0:01:09]}  a3+ {[%clk 0:00:15]} 27. Kc3 {[%clk 0:01:09]}  Rd8 {[%clk 0:00:14]} 28. Re1+ {[%clk 0:01:03]}  Kf6 {[%clk 0:00:13]} 29. Re2 {[%clk 0:00:59]}  Rd4 {[%clk 0:00:13]} 30. g3 {[%clk 0:00:55]}  b4+ {[%clk 0:00:13]} 31. Kc2 {[%clk 0:00:55]}  c4 {[%clk 0:00:13]} 32. bxc4 {[%clk 0:00:53]}  Rxc4+ {[%clk 0:00:14]} 33. Kb3 {[%clk 0:00:53]}  Rd4 {[%clk 0:00:03]} 34. Rc2 {[%clk 0:00:54]} 1-0


[Site "https://www.chess.com"]

[Event "Titled Tuesday Blitz December 27 Early 2022"]
[White "Kovacevic, Radmila"]
[Black "Mills, Morgen"]
[WhiteFideId "933171"]
[BlackFideId "2013304"]
[WhiteElo "2106"]
[BlackElo "2009"]
[Result "0-1"]
[Round "07"]
[TimeControl "180+2"]
[Date "2022.12.27"]
[WhiteClock "0:00:18"]
[BlackClock "0:00:08"]

1. e4 {[%clk 0:02:56]}  e5 {[%clk 0:02:59]} 2. d4 {[%clk 0:02:55]}  exd4 {[%clk 0:02:55]} 3. Qxd4 {[%clk 0:02:56]}  Nc6 {[%clk 0:02:54]} 4. Qe3 {[%clk 0:02:56]}  Bb4+ {[%clk 0:02:40]} 5. c3 {[%clk 0:02:56]}  Ba5 {[%clk 0:02:41]} 6. Qg3 {[%clk 0:02:55]}  Qf6 {[%clk 0:02:28]} 7. Bc4 {[%clk 0:02:51]}  Qg6 {[%clk 0:02:07]} 8. f3 {[%clk 0:02:39]}  d6 {[%clk 0:02:01]} 9. Ne2 {[%clk 0:02:37]}  Nf6 {[%clk 0:01:57]} 10. Qxg6 {[%clk 0:02:30]}  hxg6 {[%clk 0:01:56]} 11. Nf4 {[%clk 0:02:29]}  Ne5 {[%clk 0:01:55]} 12. Be2 {[%clk 0:02:28]}  Bb6 {[%clk 0:01:30]} 13. Na3 {[%clk 0:02:26]}  Bd7 {[%clk 0:01:29]} 14. Nc4 {[%clk 0:02:25]}  Nxc4 {[%clk 0:01:26]} 15. Bxc4 {[%clk 0:02:26]}  Nh5 {[%clk 0:01:23]} 16. Nxh5 {[%clk 0:02:08]}  Rxh5 {[%clk 0:01:20]} 17. Bf4 {[%clk 0:02:07]}  f6 {[%clk 0:00:57]} 18. O-O-O {[%clk 0:01:59]}  O-O-O {[%clk 0:00:57]} 19. Bf7 {[%clk 0:01:57]}  Be8 {[%clk 0:00:57]} 20. Be6+ {[%clk 0:01:54]}  Bd7 {[%clk 0:00:56]} 21. Bb3 {[%clk 0:01:51]}  g5 {[%clk 0:00:51]} 22. Bd2 {[%clk 0:01:46]}  Rdh8 {[%clk 0:00:51]} 23. h3 {[%clk 0:01:45]}  g4 {[%clk 0:00:47]} 24. fxg4 {[%clk 0:01:29]}  Bxg4 {[%clk 0:00:46]} 25. Rde1 {[%clk 0:01:25]}  Bd7 {[%clk 0:00:29]} 26. Rhf1 {[%clk 0:01:22]}  Re5 {[%clk 0:00:26]} 27. Bf4 {[%clk 0:01:19]}  Re7 {[%clk 0:00:26]} 28. Kd2 {[%clk 0:00:48]}  Rhe8 {[%clk 0:00:25]} 29. Kd3 {[%clk 0:00:48]}  Bc5 {[%clk 0:00:19]} 30. Bc2 {[%clk 0:00:44]}  a5 {[%clk 0:00:19]} 31. Re2 {[%clk 0:00:40]}  Bb5+ {[%clk 0:00:19]} 32. c4 {[%clk 0:00:39]}  Bc6 {[%clk 0:00:19]} 33. Rfe1 {[%clk 0:00:39]}  Bb4 {[%clk 0:00:19]} 34. Bd2 {[%clk 0:00:38]}  Bxd2 {[%clk 0:00:15]} 35. Kxd2 {[%clk 0:00:39]}  Re5 {[%clk 0:00:14]} 36. g4 {[%clk 0:00:38]}  Rh8 {[%clk 0:00:12]} 37. Re3 {[%clk 0:00:38]}  g6 {[%clk 0:00:09]} 38. Rf1 {[%clk 0:00:37]}  Rf8 {[%clk 0:00:07]} 39. Kd3 {[%clk 0:00:32]}  Kd7 {[%clk 0:00:05]} 40. Kd4 {[%clk 0:00:29]}  Ke7 {[%clk 0:00:05]} 41. a3 {[%clk 0:00:28]}  b6 {[%clk 0:00:04]} 42. b4 {[%clk 0:00:28]}  axb4 {[%clk 0:00:04]} 43. axb4 {[%clk 0:00:29]}  Ra8 {[%clk 0:00:04]} 44. b5 {[%clk 0:00:27]}  Bb7 {[%clk 0:00:03]} 45. Ref3 {[%clk 0:00:25]}  Re6 {[%clk 0:00:03]} 46. g5 {[%clk 0:00:23]}  Ra2 {[%clk 0:00:03]} 47. gxf6+ {[%clk 0:00:21]}  Kf7 {[%clk 0:00:03]} 48. Bd3 {[%clk 0:00:21]}  Ra3 {[%clk 0:00:03]} 49. Re1 {[%clk 0:00:20]}  Rxf6 {[%clk 0:00:02]} 50. Rxf6+ {[%clk 0:00:19]}  Kxf6 {[%clk 0:00:03]} 51. e5+ {[%clk 0:00:18]}  dxe5+ {[%clk 0:00:03]} 52. Rxe5 {[%clk 0:00:14]}  Rxd3+ {[%clk 0:00:03]} 53. Kxd3 {[%clk 0:00:14]}  Kxe5 {[%clk 0:00:03]} 54. Ke3 {[%clk 0:00:15]}  Kf5 {[%clk 0:00:03]} 55. Kd4 {[%clk 0:00:13]}  Bg2 {[%clk 0:00:02]} 56. c5 {[%clk 0:00:13]}  Bxh3 {[%clk 0:00:02]} 57. cxb6 {[%clk 0:00:13]}  cxb6 {[%clk 0:00:03]} 58. Kd5 {[%clk 0:00:13]}  Bf1 {[%clk 0:00:03]} 59. Kc6 {[%clk 0:00:14]}  Bxb5+ {[%clk 0:00:04]} 60. Kxb5 {[%clk 0:00:14]}  g5 {[%clk 0:00:04]} 61. Kxb6 {[%clk 0:00:15]}  g4 {[%clk 0:00:05]} 62. Kc5 {[%clk 0:00:16]}  Ke4 {[%clk 0:00:05]} 63. Kd6 {[%clk 0:00:16]}  g3 {[%clk 0:00:06]} 64. Ke6 {[%clk 0:00:16]}  g2 {[%clk 0:00:07]} 65. Kf6 {[%clk 0:00:17]}  g1=Q {[%clk 0:00:08]} 66. Kf7 {[%clk 0:00:18]}  Qb6 {[%clk 0:00:07]} 67. Ke7 {[%clk 0:00:18]}  Ke5 {[%clk 0:00:08]} 68. Kd7 {[%clk 0:00:18]}  Qb7+ {[%clk 0:00:08]} 0-1


[Site "https://www.chess.com"]

[Event "Titled Tuesday Blitz December 27 Early 2022"]
[White "Larina, Maria"]
[Black "Da Silva Junior, Sediney Mari"]
[WhiteFideId "24113182"]
[BlackFideId "2132079"]
[WhiteElo "1948"]
[BlackElo "2010"]
[Result "0-1"]
[Round "07"]
[TimeControl "180+2"]
[Date "2022.12.27"]
[WhiteClock "0:00:01"]
[BlackClock "0:00:13"]

1. e4 {[%clk 0:03:00]}  e6 {[%clk 0:02:58]} 2. d4 {[%clk 0:03:00]}  d5 {[%clk 0:02:57]} 3. Nc3 {[%clk 0:02:59]}  Bb4 {[%clk 0:02:57]} 4. exd5 {[%clk 0:02:56]}  exd5 {[%clk 0:02:55]} 5. Bd3 {[%clk 0:02:56]}  Ne7 {[%clk 0:02:54]} 6. Ne2 {[%clk 0:02:50]}  Nbc6 {[%clk 0:02:54]} 7. a3 {[%clk 0:02:48]}  Bd6 {[%clk 0:02:52]} 8. O-O {[%clk 0:02:47]}  Bg4 {[%clk 0:02:50]} 9. f3 {[%clk 0:02:47]}  Bh5 {[%clk 0:02:50]} 10. Nb5 {[%clk 0:02:31]}  a6 {[%clk 0:02:41]} 11. Nxd6+ {[%clk 0:02:30]}  Qxd6 {[%clk 0:02:42]} 12. Bf4 {[%clk 0:02:26]}  Qd7 {[%clk 0:02:41]} 13. Ng3 {[%clk 0:02:22]}  Bg6 {[%clk 0:02:40]} 14. c3 {[%clk 0:02:22]}  Bxd3 {[%clk 0:02:39]} 15. Qxd3 {[%clk 0:02:22]}  O-O-O {[%clk 0:02:39]} 16. b4 {[%clk 0:02:15]}  f6 {[%clk 0:02:37]} 17. a4 {[%clk 0:02:13]}  g5 {[%clk 0:02:37]} 18. Bd2 {[%clk 0:02:12]}  h5 {[%clk 0:02:36]} 19. Ne2 {[%clk 0:02:01]}  Rdg8 {[%clk 0:02:23]} 20. b5 {[%clk 0:02:01]}  Nb8 {[%clk 0:02:22]} 21. c4 {[%clk 0:01:38]}  dxc4 {[%clk 0:02:22]} 22. Qxc4 {[%clk 0:01:38]}  g4 {[%clk 0:02:20]} 23. f4 {[%clk 0:01:23]}  Nf5 {[%clk 0:02:18]} 24. Rfc1 {[%clk 0:01:06]}  Rg7 {[%clk 0:02:09]} 25. d5 {[%clk 0:00:53]}  Nd6 {[%clk 0:02:09]} 26. Qd4 {[%clk 0:00:39]}  Re8 {[%clk 0:02:07]} 27. Nc3 {[%clk 0:00:33]}  Rge7 {[%clk 0:01:02]} 28. bxa6 {[%clk 0:00:32]}  Nxa6 {[%clk 0:01:02]} 29. Rab1 {[%clk 0:00:17]}  Ne4 {[%clk 0:00:51]} 30. Be1 {[%clk 0:00:12]}  Nxc3 {[%clk 0:00:46]} 31. Bxc3 {[%clk 0:00:13]}  Re4 {[%clk 0:00:43]} 32. Qa7 {[%clk 0:00:12]}  Qxd5 {[%clk 0:00:31]} 33. Ba5 {[%clk 0:00:06]}  R8e7 {[%clk 0:00:21]} 34. Qa8+ {[%clk 0:00:06]}  Nb8 {[%clk 0:00:20]} 35. Bb6 {[%clk 0:00:02]}  Qd2 {[%clk 0:00:13]} 36. h3 {[%clk 0:00:01]}  Re1+ {[%clk 0:00:13]} 0-1


[Site "https://www.chess.com"]

[Event "Titled Tuesday Blitz December 27 Early 2022"]
[White "Lewtak, Damian"]
[Black "Mahdavi, Reza"]
[WhiteFideId "1141724"]
[BlackFideId "12595926"]
[WhiteElo "2381"]
[BlackElo "2339"]
[Result "0-1"]
[Round "07"]
[TimeControl "180+2"]
[Date "2022.12.27"]
[WhiteClock "0:00:18"]
[BlackClock "0:00:21"]

1. e4 {[%clk 0:02:59]}  c5 {[%clk 0:02:58]} 2. Nf3 {[%clk 0:02:59]}  e6 {[%clk 0:02:58]} 3. d4 {[%clk 0:02:57]}  cxd4 {[%clk 0:02:59]} 4. Nxd4 {[%clk 0:02:58]}  Nc6 {[%clk 0:03:00]} 5. Nc3 {[%clk 0:02:57]}  Qc7 {[%clk 0:03:00]} 6. Be3 {[%clk 0:02:56]}  a6 {[%clk 0:03:01]} 7. g4 {[%clk 0:02:44]}  b5 {[%clk 0:02:24]} 8. Nxc6 {[%clk 0:02:43]}  Qxc6 {[%clk 0:02:25]} 9. Bg2 {[%clk 0:02:42]}  Bb7 {[%clk 0:02:21]} 10. a3 {[%clk 0:02:35]}  Rc8 {[%clk 0:02:14]} 11. Qd4 {[%clk 0:02:30]}  Nf6 {[%clk 0:02:11]} 12. h3 {[%clk 0:02:24]}  Bc5 {[%clk 0:01:45]} 13. Qxc5 {[%clk 0:02:14]}  Qxc5 {[%clk 0:01:46]} 14. Bxc5 {[%clk 0:02:15]}  Rxc5 {[%clk 0:01:47]} 15. O-O-O {[%clk 0:02:01]}  Ke7 {[%clk 0:01:37]} 16. Rhe1 {[%clk 0:01:51]}  Rhc8 {[%clk 0:01:37]} 17. f3 {[%clk 0:01:38]}  d5 {[%clk 0:01:32]} 18. e5 {[%clk 0:01:38]}  Nd7 {[%clk 0:01:32]} 19. Rd2 {[%clk 0:01:35]}  d4 {[%clk 0:01:28]} 20. Rxd4 {[%clk 0:01:30]}  Nxe5 {[%clk 0:01:26]} 21. f4 {[%clk 0:01:17]}  Bxg2 {[%clk 0:01:17]} 22. fxe5 {[%clk 0:01:17]}  Rc4 {[%clk 0:01:02]} 23. Rxc4 {[%clk 0:01:15]}  Rxc4 {[%clk 0:01:03]} 24. Re3 {[%clk 0:01:15]}  h5 {[%clk 0:00:56]} 25. Rg3 {[%clk 0:01:15]}  Bc6 {[%clk 0:00:40]} 26. gxh5 {[%clk 0:01:15]}  Kf8 {[%clk 0:00:41]} 27. Rg4 {[%clk 0:01:05]}  Rc5 {[%clk 0:00:41]} 28. Rg5 {[%clk 0:00:56]}  f6 {[%clk 0:00:41]} 29. h6 {[%clk 0:00:56]}  gxh6 {[%clk 0:00:36]} 30. Rg6 {[%clk 0:00:55]}  Rxe5 {[%clk 0:00:26]} 31. Rxf6+ {[%clk 0:00:53]}  Kg7 {[%clk 0:00:26]} 32. Rf4 {[%clk 0:00:54]}  Re3 {[%clk 0:00:24]} 33. h4 {[%clk 0:00:50]}  e5 {[%clk 0:00:21]} 34. Rg4+ {[%clk 0:00:50]}  Kf6 {[%clk 0:00:21]} 35. Kd2 {[%clk 0:00:50]}  Rh3 {[%clk 0:00:22]} 36. Nd1 {[%clk 0:00:46]}  Kf5 {[%clk 0:00:20]} 37. Rg7 {[%clk 0:00:44]}  Rh2+ {[%clk 0:00:20]} 38. Kc1 {[%clk 0:00:36]}  Be4 {[%clk 0:00:19]} 39. Rc7 {[%clk 0:00:31]}  Kf4 {[%clk 0:00:18]} 40. b4 {[%clk 0:00:29]}  Bf5 {[%clk 0:00:18]} 41. Nb2 {[%clk 0:00:25]}  Rxh4 {[%clk 0:00:18]} 42. c4 {[%clk 0:00:21]}  Rh1+ {[%clk 0:00:18]} 43. Kd2 {[%clk 0:00:21]}  Rh2+ {[%clk 0:00:19]} 44. Kc3 {[%clk 0:00:21]}  Rc2+ {[%clk 0:00:18]} 45. Kb3 {[%clk 0:00:21]}  bxc4+ {[%clk 0:00:19]} 46. Nxc4 {[%clk 0:00:21]}  Rc1 {[%clk 0:00:18]} 47. Kb2 {[%clk 0:00:19]}  Rc2+ {[%clk 0:00:18]} 48. Kb3 {[%clk 0:00:20]}  h5 {[%clk 0:00:19]} 49. Rf7 {[%clk 0:00:20]}  Rf2 {[%clk 0:00:16]} 50. Nd6 {[%clk 0:00:19]}  Kg5 {[%clk 0:00:16]} 51. Nxf5 {[%clk 0:00:18]}  Rxf5 {[%clk 0:00:17]} 52. Rg7+ {[%clk 0:00:19]}  Kf4 {[%clk 0:00:17]} 53. Rg1 {[%clk 0:00:19]}  h4 {[%clk 0:00:17]} 54. a4 {[%clk 0:00:20]}  h3 {[%clk 0:00:16]} 55. b5 {[%clk 0:00:20]}  axb5 {[%clk 0:00:17]} 56. axb5 {[%clk 0:00:20]}  h2 {[%clk 0:00:18]} 57. Rh1 {[%clk 0:00:20]}  Kg3 {[%clk 0:00:18]} 58. Kc4 {[%clk 0:00:20]}  Kg2 {[%clk 0:00:18]} 59. Rb1 {[%clk 0:00:19]}  h1=Q {[%clk 0:00:19]} 60. Rxh1 {[%clk 0:00:18]}  Kxh1 {[%clk 0:00:19]} 61. b6 {[%clk 0:00:19]}  e4 {[%clk 0:00:20]} 62. b7 {[%clk 0:00:17]}  Rf8 {[%clk 0:00:21]} 63. Kd5 {[%clk 0:00:18]}  Rb8 {[%clk 0:00:21]} 0-1


[Site "https://www.chess.com"]

[Event "Titled Tuesday Blitz December 27 Early 2022"]
[White "Liyanage, Ranindu Dilshan"]
[Black "Forgacs, Attila Jr."]
[WhiteFideId "9915834"]
[BlackFideId "773654"]
[WhiteElo "2342"]
[BlackElo "2264"]
[Result "1-0"]
[Round "07"]
[TimeControl "180+2"]
[Date "2022.12.27"]
[WhiteClock "0:00:43"]
[BlackClock "0:00:07"]

1. e4 {[%clk 0:02:58]}  e5 {[%clk 0:03:00]} 2. Nc3 {[%clk 0:02:56]}  Nf6 {[%clk 0:03:00]} 3. Nf3 {[%clk 0:02:53]}  Nc6 {[%clk 0:03:00]} 4. Bb5 {[%clk 0:02:52]}  Bd6 {[%clk 0:02:54]} 5. d3 {[%clk 0:02:47]}  O-O {[%clk 0:02:52]} 6. a3 {[%clk 0:02:45]}  Re8 {[%clk 0:02:49]} 7. Bc4 {[%clk 0:02:40]}  Bf8 {[%clk 0:02:37]} 8. Bg5 {[%clk 0:02:38]}  h6 {[%clk 0:02:29]} 9. Bh4 {[%clk 0:02:36]}  g5 {[%clk 0:02:09]} 10. Nxg5 {[%clk 0:02:34]}  hxg5 {[%clk 0:02:05]} 11. Bxg5 {[%clk 0:02:35]}  Bg7 {[%clk 0:02:03]} 12. h4 {[%clk 0:02:27]}  d6 {[%clk 0:01:58]} 13. h5 {[%clk 0:02:25]}  Be6 {[%clk 0:01:53]} 14. h6 {[%clk 0:02:23]}  Bh8 {[%clk 0:01:52]} 15. h7+ {[%clk 0:02:19]}  Kf8 {[%clk 0:01:47]} 16. Qd2 {[%clk 0:02:12]}  Bxc4 {[%clk 0:01:43]} 17. dxc4 {[%clk 0:02:13]}  Nd4 {[%clk 0:01:36]} 18. Nd5 {[%clk 0:02:09]}  Re6 {[%clk 0:01:28]} 19. c3 {[%clk 0:01:59]}  Nb3 {[%clk 0:01:26]} 20. Bh6+ {[%clk 0:01:15]}  Ke8 {[%clk 0:01:21]} 21. Qg5 {[%clk 0:01:15]}  Nxd5 {[%clk 0:00:55]} 22. Qg8+ {[%clk 0:01:13]}  Kd7 {[%clk 0:00:55]} 23. cxd5 {[%clk 0:01:10]}  Rf6 {[%clk 0:00:35]} 24. Qg4+ {[%clk 0:01:08]}  Ke7 {[%clk 0:00:35]} 25. Rd1 {[%clk 0:01:05]}  Rg6 {[%clk 0:00:31]} 26. Qf5 {[%clk 0:01:00]}  Qd7 {[%clk 0:00:24]} 27. Qf3 {[%clk 0:00:57]}  Nc5 {[%clk 0:00:20]} 28. b4 {[%clk 0:00:55]}  Na4 {[%clk 0:00:17]} 29. Rh4 {[%clk 0:00:56]}  Nb6 {[%clk 0:00:16]} 30. g3 {[%clk 0:00:53]}  a5 {[%clk 0:00:14]} 31. Kf1 {[%clk 0:00:48]}  axb4 {[%clk 0:00:14]} 32. axb4 {[%clk 0:00:49]}  Ra2 {[%clk 0:00:14]} 33. Kg2 {[%clk 0:00:49]}  Ke8 {[%clk 0:00:12]} 34. Rh5 {[%clk 0:00:47]}  Rf6 {[%clk 0:00:12]} 35. Qe3 {[%clk 0:00:46]}  Rfxf2+ {[%clk 0:00:11]} 36. Qxf2 {[%clk 0:00:45]}  Rxf2+ {[%clk 0:00:12]} 37. Kxf2 {[%clk 0:00:46]}  Nc4 {[%clk 0:00:11]} 38. Rg5 {[%clk 0:00:45]}  Bf6 {[%clk 0:00:07]} 39. Rg8+ {[%clk 0:00:44]}  Ke7 {[%clk 0:00:08]} 40. Bf8+ {[%clk 0:00:45]}  Ke8 {[%clk 0:00:07]} 41. Bg7+ {[%clk 0:00:45]}  Ke7 {[%clk 0:00:07]} 42. Bxf6+ {[%clk 0:00:45]}  Kxf6 {[%clk 0:00:08]} 43. h8=Q+ {[%clk 0:00:45]}  Ke7 {[%clk 0:00:08]} 44. Qh4+ {[%clk 0:00:43]}  f6 {[%clk 0:00:07]} 45. Qh7# {[%clk 0:00:43]} 1-0


[Site "https://www.chess.com"]

[Event "Titled Tuesday Blitz December 27 Early 2022"]
[White "Manon-og, Ramon Jr."]
[Black "Roque Sola, Jose Luis"]
[WhiteFideId "5200776"]
[BlackFideId "5120390"]
[WhiteElo "1999"]
[BlackElo "2217"]
[Result "1-0"]
[Round "07"]
[TimeControl "180+2"]
[Date "2022.12.27"]
[WhiteClock "0:00:43"]
[BlackClock "0:00:05"]

1. e4 {[%clk 0:03:00]}  e6 {[%clk 0:02:59]} 2. d4 {[%clk 0:03:00]}  d5 {[%clk 0:02:59]} 3. Nd2 {[%clk 0:03:00]}  c5 {[%clk 0:02:57]} 4. Ngf3 {[%clk 0:03:00]}  cxd4 {[%clk 0:02:56]} 5. Nxd4 {[%clk 0:02:59]}  Nf6 {[%clk 0:02:51]} 6. exd5 {[%clk 0:02:57]}  Qxd5 {[%clk 0:02:46]} 7. N2f3 {[%clk 0:02:54]}  Be7 {[%clk 0:02:19]} 8. Bd3 {[%clk 0:02:40]}  O-O {[%clk 0:02:18]} 9. O-O {[%clk 0:02:13]}  Nc6 {[%clk 0:02:09]} 10. Nxc6 {[%clk 0:01:58]}  Qxc6 {[%clk 0:02:03]} 11. Qe2 {[%clk 0:01:56]}  b6 {[%clk 0:01:34]} 12. Bg5 {[%clk 0:01:54]}  Bb7 {[%clk 0:01:33]} 13. Rad1 {[%clk 0:01:50]}  Qc5 {[%clk 0:01:22]} 14. Bh4 {[%clk 0:01:48]}  Qh5 {[%clk 0:01:19]} 15. Bg3 {[%clk 0:01:44]}  Bxf3 {[%clk 0:01:12]} 16. Qxf3 {[%clk 0:01:44]}  Qxf3 {[%clk 0:01:12]} 17. gxf3 {[%clk 0:01:45]}  Nd5 {[%clk 0:01:06]} 18. Be4 {[%clk 0:01:44]}  Rac8 {[%clk 0:00:56]} 19. Bxd5 {[%clk 0:01:39]}  exd5 {[%clk 0:00:57]} 20. c3 {[%clk 0:01:39]}  Rfd8 {[%clk 0:00:55]} 21. Rd2 {[%clk 0:01:36]}  Rd7 {[%clk 0:00:45]} 22. Rfd1 {[%clk 0:01:36]}  Rcd8 {[%clk 0:00:45]} 23. Be5 {[%clk 0:01:36]}  f6 {[%clk 0:00:42]} 24. Bf4 {[%clk 0:01:31]}  Bc5 {[%clk 0:00:35]} 25. Kf1 {[%clk 0:01:26]}  Kf7 {[%clk 0:00:35]} 26. a4 {[%clk 0:01:13]}  g5 {[%clk 0:00:28]} 27. Bg3 {[%clk 0:01:10]}  f5 {[%clk 0:00:20]} 28. f4 {[%clk 0:01:07]}  g4 {[%clk 0:00:20]} 29. Bh4 {[%clk 0:01:07]}  Be7 {[%clk 0:00:19]} 30. Bxe7 {[%clk 0:01:03]}  Kxe7 {[%clk 0:00:20]} 31. Re1+ {[%clk 0:01:03]}  Kf6 {[%clk 0:00:19]} 32. Re5 {[%clk 0:01:04]}  d4 {[%clk 0:00:19]} 33. c4 {[%clk 0:01:04]}  d3 {[%clk 0:00:17]} 34. b3 {[%clk 0:01:00]}  Rd4 {[%clk 0:00:16]} 35. Re3 {[%clk 0:00:57]}  Rxf4 {[%clk 0:00:16]} 36. Rexd3 {[%clk 0:00:57]}  Rxd3 {[%clk 0:00:15]} 37. Rxd3 {[%clk 0:00:58]}  Rf3 {[%clk 0:00:14]} 38. Rxf3 {[%clk 0:00:45]}  gxf3 {[%clk 0:00:15]} 39. Ke1 {[%clk 0:00:45]}  Ke5 {[%clk 0:00:14]} 40. Kd2 {[%clk 0:00:45]}  Kd4 {[%clk 0:00:14]} 41. h3 {[%clk 0:00:43]}  a5 {[%clk 0:00:14]} 42. h4 {[%clk 0:00:42]}  h5 {[%clk 0:00:14]} 43. Kc2 {[%clk 0:00:43]}  Kc5 {[%clk 0:00:12]} 44. Kc3 {[%clk 0:00:42]}  f4 {[%clk 0:00:11]} 45. Kc2 {[%clk 0:00:42]}  Kb4 {[%clk 0:00:07]} 46. Kb2 {[%clk 0:00:42]}  Kc5 {[%clk 0:00:05]} 47. Kc3 {[%clk 0:00:43]} 1-0


[Site "https://www.chess.com"]

[Event "Titled Tuesday Blitz December 27 Early 2022"]
[White "Marin Ramirez, Gerardo"]
[Black "Melikhov, Evgeny V."]
[WhiteFideId "3901068"]
[BlackFideId "4122046"]
[WhiteElo "2127"]
[BlackElo "2269"]
[Result "0-1"]
[Round "07"]
[TimeControl "180+2"]
[Date "2022.12.27"]
[WhiteClock "0:00:00"]
[BlackClock "0:00:55"]

1. d4 {[%clk 0:02:53]}  Nf6 {[%clk 0:02:59]} 2. Nf3 {[%clk 0:02:54]}  d5 {[%clk 0:02:58]} 3. g3 {[%clk 0:02:55]}  c5 {[%clk 0:02:58]} 4. Bg2 {[%clk 0:02:56]}  Nc6 {[%clk 0:02:57]} 5. O-O {[%clk 0:02:52]}  e6 {[%clk 0:02:57]} 6. c4 {[%clk 0:02:50]}  Be7 {[%clk 0:02:56]} 7. dxc5 {[%clk 0:02:49]}  Bxc5 {[%clk 0:02:55]} 8. Nc3 {[%clk 0:02:46]}  O-O {[%clk 0:02:52]} 9. cxd5 {[%clk 0:02:45]}  exd5 {[%clk 0:02:50]} 10. Bg5 {[%clk 0:02:41]}  Be6 {[%clk 0:02:46]} 11. Rc1 {[%clk 0:02:26]}  Be7 {[%clk 0:02:40]} 12. Nd4 {[%clk 0:02:19]}  h6 {[%clk 0:02:40]} 13. Bf4 {[%clk 0:02:02]}  Qd7 {[%clk 0:02:36]} 14. Na4 {[%clk 0:01:54]}  Bh3 {[%clk 0:02:08]} 15. Nc5 {[%clk 0:01:43]}  Bxc5 {[%clk 0:02:06]} 16. Rxc5 {[%clk 0:01:41]}  Bxg2 {[%clk 0:02:06]} 17. Kxg2 {[%clk 0:01:40]}  Ne4 {[%clk 0:01:57]} 18. Rc1 {[%clk 0:01:12]}  Rfe8 {[%clk 0:01:53]} 19. Nb3 {[%clk 0:01:00]}  Rad8 {[%clk 0:01:38]} 20. a3 {[%clk 0:00:53]}  d4 {[%clk 0:01:34]} 21. Qd3 {[%clk 0:00:34]}  g5 {[%clk 0:01:21]} 22. Bd2 {[%clk 0:00:25]}  Qd5 {[%clk 0:01:19]} 23. f3 {[%clk 0:00:25]}  Nxd2 {[%clk 0:01:18]} 24. Nxd2 {[%clk 0:00:18]}  Re3 {[%clk 0:01:16]} 25. Qc4 {[%clk 0:00:05]}  Qxc4 {[%clk 0:01:15]} 26. Nxc4 {[%clk 0:00:02]}  Rxe2+ {[%clk 0:01:14]} 27. Rf2 {[%clk 0:00:03]}  d3 {[%clk 0:01:01]} 28. Rd1 {[%clk 0:00:00]}  Rc2 {[%clk 0:00:55]} 0-1


[Site "https://www.chess.com"]